bitfinex/quotes_SOLUSD_20230402
["timestamp","ask_amount","ask_price","bid_price","bid_amount"]
[1680446176389,10.0,20.83,20.81,10.0]
[1680446176593,10.0,20.83,20.812,10.0]
[1680446177883,10.0,20.83,20.81,10.0]
[1680446178088,10.0,20.83,20.812,10.0]
[1680446179194,10.0,20.827,20.812,10.0]
[1680446181099,10.0,20.827,20.81,10.0]
[1680446181298,10.0,20.827,20.812,10.0]
[1680446181792,10.0,20.827,20.811,17.0]
[1680446182101,10.0,20.827,20.812,20.0]
[1680446182102,10.0,20.822,20.812,20.0]
[1680446182399,17.0,20.821,20.802,126.0456]
[1680446182607,24.2121209,20.821,20.806,30.0]
[1680446182896,24.2121209,20.821,20.802,126.0456]
[1680446182897,17.2121209,20.82,20.802,126.0456]
[1680446183099,17.0,20.819,20.802,126.0456]
[1680446183299,24.2121209,20.819,20.802,116.0456]
[1680446183483,10.0,20.818,20.802,116.0456]
[1680446183679,17.0,20.817,20.802,116.0456]
[1680446183898,10.0,20.816,20.802,116.0456]
[1680446188202,10.0,20.814,20.808,19.212297]
[1680446188505,10.0,20.812,20.808,19.212297]
[1680446189206,10.0,20.814,20.808,19.212297]
[1680446189406,10.0,20.812,20.808,19.212297]
[1680446190393,10.0,20.816,20.808,19.212297]
[1680446191699,10.0,20.814,20.808,19.212297]
[1680446191904,17.0,20.813,20.808,19.212297]
[1680446193507,10.0,20.819,20.808,19.212297]
[1680446193721,10.0,20.816,20.808,19.212297]
[1680446194202,10.0,20.819,20.808,19.212297]
[1680446195814,117.9771,20.823,20.808,19.212297]
[1680446197221,10.0,20.821,20.808,19.212297]
[1680446200623,10.0,20.821,20.799,10.0]
[1680446200925,10.0,20.821,20.802,10.0]
[1680446201122,10.0,20.821,20.803,17.0]
[1680446201327,10.0,20.821,20.804,10.0]
[1680446201509,10.0,20.821,20.806,10.0]
[1680446201710,10.0,20.822,20.806,10.0]
[1680446201926,10.0,20.822,20.807,17.0]
[1680446202225,10.0,20.822,20.808,10.0]
[1680446203026,117.9771,20.823,20.808,10.0]
[1680446206625,10.0,20.822,20.807,17.0]
[1680446206806,10.0,20.822,20.806,10.0]
[1680446208750,10.0,20.822,20.806,10.0]
[1680446210433,17.0,20.821,20.804,10.0]
[1680446210609,10.0,20.82,20.804,10.0]
[1680446212628,10.0,20.82,20.802,10.0]
[1680446212823,10.0,20.82,20.804,10.0]
[1680446215831,10.0,20.818,20.802,10.0]
[1680446218034,10.0,20.818,20.802,9.5]
[1680446220934,17.0,20.819,20.802,9.5]
[1680446221534,226.3531,20.823,20.803,17.0]
[1680446221833,10.0,20.821,20.804,10.0]
[1680446222031,27.0,20.822,20.806,10.0]
[1680446222331,226.3531,20.823,20.806,10.0]
[1680446222631,117.9771,20.823,20.808,10.0]
[1680446222936,117.9771,20.823,20.81,10.0]
[1680446223135,117.9771,20.823,20.812,10.0]
[1680446224128,116.2007,20.83,20.812,10.0]
[1680446224329,10.0,20.829,20.814,10.0]
[1680446224535,10.0,20.829,20.816,10.0]
[1680446225720,10.0,20.829,20.814,10.0]
[1680446229734,10.0,20.833,20.815,17.0]
[1680446229936,169.394016,20.834,20.815,17.0]
[1680446230131,169.394016,20.834,20.816,10.0]
[1680446230322,169.394016,20.834,20.818,10.0]
[1680446230725,10.0,20.833,20.818,10.0]
[1680446231839,10.0,20.833,20.82,10.0]
[1680446232722,10.0,20.833,20.818,10.0]
[1680446232926,10.0,20.833,20.819,17.0]
[1680446233841,10.0,20.833,20.816,10.0]
[1680446234048,10.0,20.833,20.817,17.0]
[1680446239239,16.807,20.824,20.817,17.0]
[1680446240048,16.807,20.824,20.817,10.0]
[1680446240246,16.807,20.824,20.812,107.6551]
[1680446240450,16.807,20.824,20.81,10.0]
[1680446240744,16.807,20.824,20.812,20.0]
[1680446241241,16.807,20.824,20.812,10.0]
[1680446241834,10.0,20.822,20.812,10.0]
[1680446242649,116.6596,20.823,20.812,10.0]
[1680446242844,116.6596,20.823,20.811,20.0]
[1680446244648,10.0,20.822,20.811,20.0]
[1680446244949,10.0,20.822,20.808,20.0]
[1680446245145,10.0,20.822,20.809,10.0]
[1680446245353,10.0,20.822,20.811,10.0]
[1680446245539,10.0,20.822,20.812,20.0]
[1680446246355,10.0,20.822,20.81,20.0]
[1680446246852,17.0,20.821,20.788,1005.8]
[1680446247043,10.0,20.82,20.802,120.4599]
[1680446251767,10.0,20.822,20.802,120.4599]
[1680446252050,10.0,20.82,20.804,17.2121209]
[1680446252252,10.0,20.822,20.804,17.2121209]
[1680446252459,231.9487,20.823,20.806,10.0]
[1680446252655,231.9487,20.823,20.807,37.0]
[1680446252855,231.9487,20.823,20.808,10.0]
[1680446253045,231.9487,20.823,20.81,10.0]
[1680446253358,231.9487,20.823,20.812,10.0]
[1680446253860,231.9487,20.823,20.814,10.0]
[1680446254656,231.9487,20.823,20.813,17.0]
[1680446256053,231.9487,20.823,20.813,10.0]
[1680446256659,231.9487,20.823,20.812,17.0]
[1680446256853,231.9487,20.823,20.811,7.2121209]
[1680446256854,10.0,20.822,20.793,47.92]
[1680446257049,10.0,20.822,20.811,10.0]
[1680446257253,10.0,20.822,20.812,20.0]
[1680446257843,7.5,20.822,20.812,20.0]
[1680446258439,7.5,20.822,20.81,10.0]
[1680446258649,7.5,20.822,20.811,20.0]
[1680446260170,7.5,20.822,20.81,10.0]
[1680446260372,7.5,20.822,20.812,10.0]
[1680446260667,7.5,20.822,20.81,10.0]
[1680446260843,7.5,20.822,20.812,10.0]
[1680446261039,7.5,20.822,20.81,10.0]
[1680446261262,116.6596,20.823,20.812,10.0]
[1680446262379,114.1596,20.823,20.812,10.0]
[1680446264767,114.1596,20.823,20.811,17.0]
[1680446264968,114.1596,20.823,20.813,10.0]
[1680446265584,114.1596,20.823,20.812,20.0]
[1680446266078,111.6596,20.823,20.813,10.0]
[1680446266979,111.6596,20.823,20.812,20.0]
[1680446269085,109.1596,20.823,20.813,10.0]
[1680446269585,109.1596,20.823,20.812,20.0]
[1680446269771,109.1596,20.823,20.814,10.0]
[1680446269971,109.1596,20.823,20.812,20.0]
[1680446270185,109.1596,20.823,20.812,10.0]
[1680446270577,109.1596,20.823,20.811,20.0]
[1680446271265,96.6596,20.823,20.812,10.0]
[1680446272286,96.6596,20.823,20.811,20.0]
[1680446273369,94.1596,20.823,20.811,10.0]
[1680446273569,94.1596,20.823,20.812,20.0]
[1680446274983,94.1596,20.823,20.811,10.0]
[1680446275285,94.1596,20.823,20.812,20.0]
[1680446277487,94.1596,20.823,20.811,10.0]
[1680446277686,94.1596,20.823,20.812,20.0]
[1680446278297,10.0,20.821,20.812,20.0]
[1680446278606,10.0,20.819,20.809,20.0]
[1680446278790,17.0,20.818,20.809,20.0]
[1680446278987,10.0,20.817,20.809,20.0]
[1680446281692,17.0,20.818,20.809,20.0]
[1680446283086,10.0,20.819,20.809,20.0]
[1680446284396,10.0,20.821,20.809,20.0]
[1680446284575,10.0,20.819,20.809,20.0]
[1680446285797,17.0,20.82,20.809,20.0]
[1680446285975,17.0,20.82,20.806,10.0]
[1680446286175,17.0,20.82,20.807,20.0]
[1680446286493,118.8161,20.821,20.808,10.0]
[1680446286697,118.8161,20.821,20.81,10.0]
[1680446286878,118.8161,20.821,20.811,20.0]
[1680446287275,108.8161,20.821,20.811,20.0]
[1680446287596,106.3161,20.821,20.812,10.0]
[1680446288297,106.3161,20.821,20.811,20.0]
[1680446290096,106.3161,20.821,20.811,10.0]
[1680446290297,106.3161,20.821,20.812,20.0]
[1680446291291,106.3161,20.821,20.811,10.0]
[1680446291587,106.3161,20.821,20.812,20.0]
[1680446292384,94.1596,20.823,20.812,20.0]
[1680446292584,94.1596,20.823,20.814,10.0]
[1680446293393,94.1596,20.823,20.816,10.0]
[1680446293583,94.1596,20.823,20.817,17.0]
[1680446293786,113.4138,20.829,20.817,17.0]
[1680446294599,20.0,20.855,20.819,10.0]
[1680446294799,112.9091,20.839,20.821,10.0]
[1680446294976,112.9091,20.839,20.822,20.0]
[1680446297400,10.0,20.833,20.822,20.0]
[1680446297700,10.0,20.833,20.821,10.0]
[1680446297895,10.0,20.833,20.823,10.0]
[1680446298096,10.0,20.833,20.821,10.0]
[1680446298402,10.0,20.833,20.822,20.0]
[1680446299901,10.0,20.833,20.819,10.0]
[1680446299902,10.0,20.833,20.821,10.0]
[1680446300201,10.0,20.833,20.822,20.0]
[1680446301386,10.0,20.833,20.819,10.0]
[1680446301387,10.0,20.833,20.821,10.0]
[1680446301587,10.0,20.833,20.822,20.0]
[1680446301997,10.0,20.823,20.813,10.0]
[1680446304003,10.0,20.83,20.813,10.0]
[1680446310209,10.0,20.83,20.815,10.0]
[1680446312211,116.2718,20.831,20.817,10.0]
[1680446312510,116.2718,20.831,20.819,10.0]
[1680446313015,116.2718,20.831,20.82,20.0]
[1680446314796,10.0,20.83,20.818,20.0]
[1680446315619,116.2718,20.831,20.819,10.0]
[1680446315798,116.2718,20.831,20.821,10.0]
[1680446315995,116.2718,20.831,20.822,20.0]
[1680446317110,116.2718,20.831,20.82,20.0]
[1680446322715,116.2718,20.831,20.821,17.0]
[1680446322919,116.2718,20.831,20.822,20.0]
[1680446336512,116.2718,20.831,20.818,20.0]
[1680446336717,116.2718,20.831,20.817,10.0]
[1680446336920,116.2718,20.831,20.819,10.0]
[1680446337322,116.2718,20.831,20.82,20.0]
[1680446338415,116.2718,20.831,20.819,20.0]
[1680446342333,10.0,20.83,20.819,20.0]
[1680446342522,10.0,20.83,20.817,10.0]
[1680446342830,10.0,20.83,20.818,20.0]
[1680446344015,10.0,20.83,20.817,10.0]
[1680446344317,10.0,20.83,20.818,20.0]
[1680446345522,10.0,20.83,20.817,10.0]
[1680446345725,10.0,20.83,20.819,10.0]
[1680446345924,10.0,20.83,20.82,20.0]
[1680446346318,10.0,20.83,20.793,244.80733951]
[1680446346528,10.0,20.83,20.806,29.212796]
[1680446346722,10.0,20.822,20.811,20.0]
[1680446351415,10.0,20.822,20.811,10.0]
[1680446351620,10.0,20.822,20.812,20.0]
[1680446351824,119.8817,20.823,20.812,20.0]
[1680446353438,119.8817,20.823,20.808,20.0]
[1680446353637,119.8817,20.823,20.81,10.0]
[1680446353833,119.8817,20.823,20.812,10.0]
[1680446357342,119.8817,20.823,20.81,10.0]
[1680446357544,119.8817,20.823,20.812,10.0]
[1680446361247,119.8817,20.823,20.811,20.0]
[1680446368156,10.0,20.822,20.811,20.0]
[1680446368449,10.0,20.822,20.808,10.0]
[1680446368651,10.0,20.822,20.809,20.0]
[1680446369056,10.0,20.82,20.809,20.0]
[1680446369254,10.0,20.818,20.809,20.0]
[1680446369457,10.0,20.818,20.808,10.0]
[1680446369651,10.0,20.82,20.809,20.0]
[1680446371956,10.0,20.82,20.807,20.0]
[1680446372141,10.0,20.82,20.808,10.0]
[1680446372342,10.0,20.82,20.809,20.0]
[1680446372965,10.0,20.82,20.808,10.0]
[1680446373167,10.0,20.82,20.809,20.0]
[1680446373969,10.0,20.82,20.806,19.212796]
[1680446373970,10.0,20.82,20.808,10.0]
[1680446374258,10.0,20.82,20.809,20.0]
[1680446374960,10.0,20.82,20.808,10.0]
[1680446375159,10.0,20.82,20.809,20.0]
[1680446375963,10.0,20.82,20.808,10.0]
[1680446376145,10.0,20.82,20.809,20.0]
[1680446377450,10.0,20.82,20.808,10.0]
[1680446377652,10.0,20.82,20.809,20.0]
[1680446378063,10.0,20.82,20.806,12.212796]
[1680446380567,10.0,20.82,20.808,10.0]
[1680446380769,10.0,20.82,20.81,10.0]
[1680446380971,10.0,20.82,20.811,20.0]
[1680446381475,10.0,20.82,20.81,10.0]
[1680446381663,10.0,20.82,20.811,20.0]
[1680446382462,10.0,20.82,20.809,20.0]
[1680446382667,119.8817,20.823,20.81,10.0]
[1680446382853,119.8817,20.823,20.812,10.0]
[1680446383265,119.8817,20.823,20.81,10.0]
[1680446383468,119.8817,20.823,20.812,10.0]
[1680446383857,119.8817,20.823,20.811,20.0]
[1680446384066,27.0,20.822,20.811,20.0]
[1680446384453,27.0,20.822,20.81,10.0]
[1680446384655,27.0,20.822,20.811,20.0]
[1680446385556,27.0,20.822,20.81,10.0]
[1680446385869,27.0,20.822,20.811,20.0]
[1680446387971,27.0,20.822,20.81,10.0]
[1680446388171,27.0,20.822,20.811,20.0]
[1680446389358,27.0,20.822,20.81,10.0]
[1680446389568,27.0,20.822,20.811,20.0]
[1680446389955,27.0,20.822,20.81,10.0]
[1680446390162,27.0,20.822,20.811,20.0]
[1680446391056,27.0,20.822,20.81,10.0]
[1680446391257,27.0,20.822,20.811,20.0]
[1680446392976,27.0,20.822,20.81,10.0]
[1680446393157,27.0,20.822,20.811,20.0]
[1680446394574,27.0,20.822,20.81,10.0]
[1680446394773,27.0,20.822,20.811,20.0]
[1680446396575,17.0,20.822,20.811,20.0]
[1680446397876,27.0,20.822,20.811,20.0]
[1680446398178,27.0,20.822,20.81,10.0]
[1680446398477,27.0,20.822,20.811,20.0]
[1680446399080,27.0,20.822,20.81,10.0]
[1680446399281,27.0,20.822,20.811,20.0]
[1680446399985,27.0,20.822,20.81,10.0]
[1680446400178,27.0,20.822,20.811,20.0]
[1680446402087,27.0,20.822,20.81,10.0]
[1680446402271,27.0,20.822,20.811,20.0]
[1680446402981,27.0,20.822,20.81,10.0]
[1680446403281,27.0,20.822,20.811,20.0]
[1680446404088,27.0,20.822,20.81,10.0]
[1680446404287,27.0,20.822,20.811,20.0]
[1680446404784,17.0,20.822,20.811,20.0]
[1680446404983,17.0,20.822,20.809,20.0]
[1680446405183,17.0,20.822,20.81,10.0]
[1680446405379,17.0,20.822,20.812,10.0]
[1680446405987,17.0,20.822,20.81,10.0]
[1680446406287,17.0,20.822,20.812,10.0]
[1680446406485,17.0,20.822,20.81,10.0]
[1680446406688,17.0,20.822,20.812,10.0]
[1680446406883,17.0,20.822,20.81,10.0]
[1680446407083,17.0,20.822,20.811,20.0]
[1680446408488,17.0,20.822,20.81,10.0]
[1680446408692,17.0,20.822,20.812,10.0]
[1680446409188,17.0,20.822,20.81,10.0]
[1680446409388,17.0,20.822,20.812,10.0]
[1680446410093,232.7038,20.823,20.812,10.0]
[1680446411791,232.7038,20.823,20.81,10.0]
[1680446411993,232.7038,20.823,20.812,10.0]
[1680446412794,232.7038,20.823,20.811,20.0]
[1680446420390,119.8817,20.823,20.811,20.0]
[1680446420599,16.807,20.824,20.813,10.0]
[1680446420799,16.807,20.824,20.814,17.0]
[1680446420986,16.807,20.824,20.815,10.0]
[1680446425102,16.807,20.824,20.814,17.0]
[1680446426297,16.807,20.824,20.811,20.0]
[1680446431002,16.807,20.824,20.81,10.0]
[1680446431201,109.3709,20.823,20.811,20.0]
[1680446431403,10.0,20.822,20.811,20.0]
[1680446431788,10.0,20.822,20.81,10.0]
[1680446432003,10.0,20.822,20.812,10.0]
[1680446432309,10.0,20.822,20.811,20.0]
[1680446434005,10.0,20.822,20.809,10.0]
[1680446434303,10.0,20.822,20.811,10.0]
[1680446434496,10.0,20.822,20.812,20.0]
[1680446435604,10.0,20.822,20.811,10.0]
[1680446435800,10.0,20.822,20.812,20.0]
[1680446437002,10.0,20.822,20.81,20.0]
[1680446437200,10.0,20.822,20.811,10.0]
[1680446437403,10.0,20.822,20.812,20.0]
[1680446438009,10.0,20.822,20.811,10.0]
[1680446438209,10.0,20.822,20.812,20.0]
[1680446439014,10.0,20.822,20.811,10.0]
[1680446439209,10.0,20.822,20.812,20.0]
[1680446440016,10.0,20.822,20.811,10.0]
[1680446440201,10.0,20.822,20.812,20.0]
[1680446440913,10.0,20.822,20.811,10.0]
[1680446441115,10.0,20.822,20.812,20.0]
[1680446441715,10.0,20.822,20.811,10.0]
[1680446441893,10.0,20.822,20.812,20.0]
[1680446442594,10.0,20.822,20.811,10.0]
[1680446442796,10.0,20.822,20.812,20.0]
[1680446443605,10.0,20.822,20.811,10.0]
[1680446443806,10.0,20.822,20.812,20.0]
[1680446444716,10.0,20.822,20.811,10.0]
[1680446445013,10.0,20.822,20.812,20.0]
[1680446446017,10.0,20.822,20.811,10.0]
[1680446446217,10.0,20.822,20.812,20.0]
[1680446447015,10.0,20.822,20.811,10.0]
[1680446447200,10.0,20.822,20.812,20.0]
[1680446448015,10.0,20.822,20.811,10.0]
[1680446448219,10.0,20.822,20.812,20.0]
[1680446449019,10.0,20.822,20.811,10.0]
[1680446449209,10.0,20.822,20.812,20.0]
[1680446450009,10.0,20.822,20.811,10.0]
[1680446450207,10.0,20.822,20.812,20.0]
[1680446450918,10.0,20.822,20.81,20.0]
[1680446451120,10.0,20.822,20.811,10.0]
[1680446451417,10.0,20.822,20.812,20.0]
[1680446453424,10.0,20.822,20.812,20.0]
[1680446453805,109.3709,20.823,20.812,20.0]
[1680446454005,109.3709,20.823,20.811,10.0]
[1680446454324,109.3709,20.823,20.812,20.0]
[1680446454620,10.0,20.822,20.812,20.0]
[1680446454916,10.0,20.822,20.809,10.0]
[1680446455125,10.0,20.822,20.811,10.0]
[1680446455322,10.0,20.822,20.812,20.0]
[1680446456620,10.0,20.822,20.811,10.0]
[1680446456820,10.0,20.822,20.812,20.0]
[1680446457925,10.0,20.822,20.809,10.0]
[1680446458219,10.0,20.822,20.811,10.0]
[1680446458417,10.0,20.822,20.812,20.0]
[1680446458926,10.0,20.822,20.81,20.0]
[1680446459111,10.0,20.822,20.811,10.0]
[1680446459309,10.0,20.822,20.812,20.0]
[1680446459923,10.0,20.822,20.81,20.0]
[1680446460220,10.0,20.82,20.806,12.212796]
[1680446460417,17.0,20.819,20.806,12.212796]
[1680446460608,10.0,20.818,20.806,12.212796]
[1680446460809,10.0,20.816,20.806,12.212796]
[1680446461103,10.0,20.814,20.806,12.212796]
[1680446461302,17.0,20.813,20.806,12.212796]
[1680446461509,10.0,20.812,20.806,12.212796]
[1680446462909,10.0,20.812,20.794,10.0]
[1680446463217,126.0277,20.812,20.796,10.0]
[1680446463420,126.0277,20.812,20.798,10.0]
[1680446463619,126.0277,20.812,20.8,10.0]
[1680446463821,126.0277,20.812,20.801,20.0]
[1680446464515,126.0277,20.812,20.799,20.0]
[1680446464722,126.0277,20.812,20.8,10.0]
[1680446464910,126.0277,20.812,20.801,20.0]
[1680446466126,126.0277,20.812,20.8,10.0]
[1680446466322,126.0277,20.812,20.801,20.0]
[1680446467923,126.0277,20.812,20.8,10.0]
[1680446468125,126.0277,20.812,20.801,20.0]
[1680446468922,126.0277,20.812,20.799,20.0]
[1680446469124,126.0277,20.812,20.8,10.0]
[1680446469323,126.0277,20.812,20.802,10.0]
[1680446469523,126.0277,20.812,20.8,10.0]
[1680446469728,126.0277,20.812,20.801,20.0]
[1680446470629,116.0277,20.812,20.8,10.0]
[1680446470828,116.0277,20.812,20.802,10.0]
[1680446471427,116.0277,20.812,20.8,10.0]
[1680446471630,116.0277,20.812,20.802,10.0]
[1680446472331,116.0277,20.812,20.8,10.0]
[1680446472522,116.0277,20.812,20.802,10.0]
[1680446473711,17.0,20.813,20.802,10.0]
[1680446473914,10.0,20.822,20.804,10.0]
[1680446474119,120.2311,20.822,20.804,10.0]
[1680446479822,120.2311,20.822,20.803,17.0]
[1680446481425,120.2311,20.822,20.804,10.0]
[1680446481626,120.2311,20.822,20.805,17.0]
[1680446481825,120.2311,20.822,20.806,10.0]
[1680446493040,110.2311,20.822,20.808,10.0]
[1680446496344,109.3709,20.823,20.808,10.0]
[1680446496546,113.4011,20.83,20.809,37.0]
[1680446496740,10.0,20.833,20.81,40.0]
[1680446496944,10.0,20.833,20.811,37.0]
[1680446497246,10.0,20.833,20.812,10.0]
[1680446497446,10.0,20.833,20.813,37.0]
[1680446497749,10.0,20.833,20.814,10.0]
[1680446497943,10.0,20.833,20.815,37.0]
[1680446498149,10.0,20.833,20.816,10.0]
[1680446498341,10.0,20.833,20.818,10.0]
[1680446498648,10.0,20.833,20.819,20.0]
[1680446499237,169.392807,20.834,20.82,10.0]
[1680446499434,169.392807,20.834,20.821,20.0]
[1680446499636,169.392807,20.834,20.822,10.0]
[1680446499844,169.392807,20.834,20.821,20.0]
[1680446500243,10.0,20.833,20.821,20.0]
[1680446500454,10.0,20.833,20.821,10.0]
[1680446500654,10.0,20.833,20.822,20.0]
[1680446501452,10.0,20.833,20.82,10.0]
[1680446501652,10.0,20.833,20.821,20.0]
[1680446502641,10.0,20.833,20.82,10.0]
[1680446502844,10.0,20.833,20.821,20.0]
[1680446503955,10.0,20.833,20.82,10.0]
[1680446504156,10.0,20.833,20.821,20.0]
[1680446504956,10.0,20.833,20.82,10.0]
[1680446505256,10.0,20.833,20.821,20.0]
[1680446505836,10.0,20.833,20.82,10.0]
[1680446506040,10.0,20.833,20.821,20.0]
[1680446506851,10.0,20.833,20.82,10.0]
[1680446507036,10.0,20.833,20.821,20.0]
[1680446508455,10.0,20.833,20.82,10.0]
[1680446508754,10.0,20.833,20.821,20.0]
[1680446509352,150.1768,20.834,20.821,20.0]
[1680446511257,150.1768,20.834,20.822,10.0]
[1680446511452,150.1768,20.834,20.822,27.0]
[1680446516664,150.1768,20.834,20.822,17.0]
[1680446516847,10.0,20.833,20.821,20.0]
[1680446517049,10.0,20.833,20.82,10.0]
[1680446517259,10.0,20.833,20.822,10.0]
[1680446517861,10.0,20.833,20.82,10.0]
[1680446518053,10.0,20.833,20.822,10.0]
[1680446518458,150.1768,20.834,20.822,10.0]
[1680446518754,150.1768,20.834,20.823,17.0]
[1680446521362,150.1768,20.834,20.823,10.0]
[1680446521564,150.1768,20.834,20.823,27.0]
[1680446521765,150.1768,20.834,20.823,17.0]
[1680446522068,150.1768,20.834,20.823,10.0]
[1680446522255,150.1768,20.834,20.823,27.0]
[1680446522565,150.1768,20.834,20.823,17.0]
[1680446522747,150.1768,20.834,20.823,10.0]
[1680446522949,150.1768,20.834,20.823,27.0]
[1680446523149,150.1768,20.834,20.823,17.0]
[1680446523354,150.1768,20.834,20.823,10.0]
[1680446523554,150.1768,20.834,20.823,27.0]
[1680446523866,150.1768,20.834,20.823,17.0]
[1680446524166,150.1768,20.834,20.823,10.0]
[1680446524364,150.1768,20.834,20.823,17.0]
[1680446524766,150.1768,20.834,20.823,10.0]
[1680446524969,150.1768,20.834,20.823,27.0]
[1680446525463,150.1768,20.834,20.823,17.0]
[1680446525664,150.1768,20.834,20.823,10.0]
[1680446525861,150.1768,20.834,20.823,17.0]
[1680446526365,150.1768,20.834,20.823,10.0]
[1680446526566,150.1768,20.834,20.823,27.0]
[1680446527069,150.1768,20.834,20.823,17.0]
[1680446527272,150.1768,20.834,20.823,10.0]
[1680446527459,150.1768,20.834,20.823,27.0]
[1680446528872,150.1768,20.834,20.823,17.0]
[1680446529169,150.1768,20.834,20.823,10.0]
[1680446529371,150.1768,20.834,20.823,27.0]
[1680446530072,150.1768,20.834,20.823,17.0]
[1680446530371,150.1768,20.834,20.823,10.0]
[1680446530670,150.1768,20.834,20.823,27.0]
[1680446531372,150.1768,20.834,20.823,17.0]
[1680446531571,150.1768,20.834,20.823,10.0]
[1680446531769,150.1768,20.834,20.823,27.0]
[1680446532670,150.1768,20.834,20.823,17.0]
[1680446532970,150.1768,20.834,20.823,10.0]
[1680446533155,150.1768,20.834,20.823,27.0]
[1680446534169,150.1768,20.834,20.823,17.0]
[1680446534370,150.1768,20.834,20.823,10.0]
[1680446534670,150.1768,20.834,20.823,27.0]
[1680446535371,150.1768,20.834,20.823,17.0]
[1680446535570,150.1768,20.834,20.823,10.0]
[1680446535755,150.1768,20.834,20.823,27.0]
[1680446535962,150.1768,20.834,20.823,17.0]
[1680446536156,150.1768,20.834,20.823,10.0]
[1680446536462,150.1768,20.834,20.823,27.0]
[1680446536670,150.1768,20.834,20.823,17.0]
[1680446536870,150.1768,20.834,20.823,10.0]
[1680446537061,150.1768,20.834,20.823,27.0]
[1680446537262,150.1768,20.834,20.823,17.0]
[1680446537472,150.1768,20.834,20.823,10.0]
[1680446537671,150.1768,20.834,20.823,27.0]
[1680446538168,150.1768,20.834,20.823,17.0]
[1680446538378,150.1768,20.834,20.823,10.0]
[1680446538551,150.1768,20.834,20.823,27.0]
[1680446538757,150.1768,20.834,20.823,17.0]
[1680446538956,150.1768,20.834,20.823,10.0]
[1680446539273,150.1768,20.834,20.823,17.0]
[1680446539471,150.1768,20.834,20.821,20.0]
[1680446539773,10.0,20.833,20.819,20.0]
[1680446539968,122.4971,20.833,20.819,20.0]